[Event "Turkish Cup 2024"]
[Site "Denizli"]
[Date "2024.07.31"]
[Round "2"]
[White "Topuz, Mirac Melih"]
[Black "Ulus, Ekin"]
[Result "1-0"]
[ECO "D13"]
[WhiteElo "2148"]
[BlackElo "1749"]
[Annotator "RC"]
[PlyCount "89"]
[EventDate "2024.08.01"]
[EventType "swiss"]
[EventCountry "TUR"]
[SourceTitle "playchess.com"]
[Source "ChessBase"]
[SourceQuality "1"]
[TimeControl "5400+30"]

1. d4 {[%emt 0:07:00]} d5 {[%emt 0:01:00]} 2. c4 {[%emt 0:02:30]} c6 {[%emt 0:00:30]} 3. Nf3 {[%emt 0:00:30]} Nf6 {[%emt 0:00:30]} 4. Nc3 {[%emt 0:00:30]} a6 {[%emt 0:00:00]} 5. cxd5 {[%emt 0:00:00]} cxd5 {[%emt 0:00:00]} 6. Bf4 {[%emt 0:00:00]} Nc6 {[%emt 0:00:00]} 7. Rc1 {[%emt 0:00:30]} Bf5 {[%emt 0:01:00]} 8. e3 {[%emt 0:01:30]} e6 {[%emt 0:01:30]} 9. Qb3 {[%emt 0:00:00]} Ra7 {[%emt 0:02:30]} 10. Ne5 {[%emt 0:04:00]} Nxe5 {[%emt 0:04:30]} 11. Bxe5 {[%emt 0:00:30]} Nd7 {[%emt 0:00:00]} 12. Be2 {[%emt 0:27:30]} h5 {[%emt 0:33:00]} 13. O-O {[%emt 0:05:30]} h4 {[%emt 0:01:30]} 14. Qa4 {[%emt 0:14:30]} Ra8 {[%emt 0:17:30]} 15. Bc7 {[%emt 0:04:30]} Qxc7 {[%emt 0:13:30]} 16. Nb5 {[%emt 0:01:30]} Qd8 {[%emt 0:02:14]} 17. Nc7+ {[%emt 0:00:30]} Ke7 {[%emt 0:00:30]} 18. Nxa8 {[%emt 0:00:00]} Qxa8 {[%emt 0:00:00]} 19. Rc7 {[%emt 0:00:00]} e5 {[%emt 0:02:14]} 20. dxe5 {[%emt 0:00:30]} Kd8 {[%emt 0:03:22]} 21. Rfc1 {[%emt 0:00:30]} Qb8 {[%emt 0:01:05]} 22. Qa5 {[%emt 0:00:30]} b6 {[%emt 0:00:36]} 23. Rc8+ {[%emt 0:01:30]} Qxc8 {[%emt 0:00:30]} 24. Rxc8+ {[%emt 0:00:30]} Kxc8 {[%emt 0:00:00]} 25. Bxa6+ {[%emt 0:00:00]} Kd8 {[%emt 0:04:30]} 26. Qxd5 {[%emt 0:02:00]} Be6 {[%emt 0:00:02]} 27. Qa8+ {[%emt 0:00:30]} Ke7 {[%emt 0:00:01]} 28. a4 {[%emt 0:03:30]} g6 {[%emt 0:01:21]} 29. Qc6 {[%emt 0:00:30]} Bg7 {[%emt 0:02:08]} 30. Qd6+ {[%emt 0:00:30]} Kd8 {[%emt 0:00:37]} 31. f4 {[%emt 0:00:00]} Bf8 {[%emt 0:04:14]} 32. Qc6 {[%emt 0:00:00]} Rh6 {[%emt 0:01:41]} 33. Qc8+ {[%emt 0:01:30]} Ke7 {[%emt 0:00:03]} 34. Bc4 {[%emt 0:00:30]} Bxc4 {[%emt 0:03:08]} 35. Qxc4 {[%emt 0:00:30]} Bg7 {[%emt 0:00:38]} 36. b4 {[%emt 0:01:30]} Rh8 {[%emt 0:00:31]} 37. Qc6 {[%emt 0:02:30]} Rb8 {[%emt 0:01:20]} 38. a5 {[%emt 0:00:30]} bxa5 {[%emt 0:00:58]} 39. bxa5 {[%emt 0:00:30]} Rb1+ {[%emt 0:00:36]} 40. Kf2 {[%emt 0:00:30]} Ra1 {[%emt 0:00:03]} 41. a6 {[%emt 0:08:00]} Ra2+ {[%emt 0:00:09]} 42. Ke1 {[%emt 0:00:10]} Bf8 {[%emt 0:01:14]} 43. Qb7 {[%emt 0:00:27]} Ra1+ {[%emt 0:01:02]} 44. Ke2 {[%emt 0:00:09]} h3 {[%emt 0:00:37]} 45. gxh3 {[%emt 0:00:16]} 1-0

[Event "Turkish Cup 2024"]
[Site "Denizli"]
[Date "2024.07.31"]
[Round "2"]
[White "Metin, Enis"]
[Black "Lokman, Hilmi Merih"]
[Result "1-0"]
[ECO "B10"]
[WhiteElo "2142"]
[BlackElo "1728"]
[Annotator "RC"]
[PlyCount "77"]
[EventDate "2024.08.01"]
[EventType "swiss"]
[EventCountry "TUR"]
[SourceTitle "playchess.com"]
[Source "ChessBase"]
[SourceQuality "1"]
[TimeControl "5400+30"]

1. e4 {[%emt 0:06:00]} c6 {[%emt 0:01:00]} 2. d3 {[%emt 0:00:00]} d5 {[%emt 0:00:30]} 3. Nd2 {[%emt 0:00:00]} e5 {[%emt 0:01:30]} 4. Ngf3 {[%emt 0:00:00]} Bd6 {[%emt 0:03:30]} 5. d4 {[%emt 0:00:00]} exd4 {[%emt 0:03:30]} 6. Bd3 {[%emt 0:05:30]} Ne7 {[%emt 0:02:30]} 7. O-O {[%emt 0:02:30]} O-O {[%emt 0:00:30]} 8. exd5 {[%emt 0:01:30]} Nxd5 {[%emt 0:00:30]} 9. Ne4 {[%emt 0:01:30]} Bg4 {[%emt 0:00:30]} 10. h3 {[%emt 0:00:30]} Bh5 {[%emt 0:00:30]} 11. g4 {[%emt 0:01:30]} Bg6 {[%emt 0:00:30]} 12. Nxd4 {[%emt 0:00:30]} Bxe4 {[%emt 0:02:30]} 13. Bxe4 {[%emt 0:00:30]} Nf4 {[%emt 0:05:30]} 14. Qf3 {[%emt 0:00:30]} Ng6 {[%emt 0:01:30]} 15. Nf5 {[%emt 0:01:30]} Nh4 {[%emt 0:08:30]} 16. Qc3 {[%emt 0:07:30]} Nxf5 {[%emt 0:01:30]} 17. Bxf5 {[%emt 0:00:00]} Qc7 {[%emt 0:00:00]} 18. Be3 {[%emt 0:02:00]} Be5 {[%emt 0:01:00]} 19. Qb3 {[%emt 0:01:30]} Nd7 {[%emt 0:00:30]} 20. Rad1 {[%emt 0:02:30]} Nf6 {[%emt 0:04:30]} 21. c4 {[%emt 0:12:30]} Rfd8 {[%emt 0:00:30]} 22. Rxd8+ {[%emt 0:02:30]} Rxd8 {[%emt 0:02:30]} 23. Bxa7 {[%emt 0:00:30]} b5 {[%emt 0:00:30]} 24. Be3 {[%emt 0:00:30]} bxc4 {[%emt 0:00:30]} 25. Qxc4 {[%emt 0:00:00]} Bxb2 {[%emt 0:03:30]} 26. Rb1 {[%emt 0:01:00]} Nd5 {[%emt 0:20:30]} 27. Bg5 {[%emt 0:12:30]} Bf6 {[%emt 0:05:30]} 28. Bxf6 {[%emt 0:00:30]} gxf6 {[%emt 0:00:00]} 29. Rd1 {[%emt 0:03:30]} Qb7 {[%emt 0:04:00]} 30. Rc1 {[%emt 0:10:30]} Ra8 {[%emt 0:01:30]} 31. Be4 {[%emt 0:02:30]} Qb2 {[%emt 0:02:30]} 32. Rb1 {[%emt 0:06:47]} Qxa2 {[%emt 0:05:57]} 33. Qxc6 {[%emt 0:01:41]} Ra5 {[%emt 0:00:13]} 34. Rb8+ {[%emt 0:01:49]} Kg7 {[%emt 0:00:28]} 35. Qc8 {[%emt 0:05:43]} Qa1+ {[%emt 0:06:26]} 36. Bb1 {[%emt 0:00:06]} f5 {[%emt 0:02:26]} 37. g5 {[%emt 0:01:42]} Kg6 {[%emt 0:02:59]} 38. Qxf5+ {[%emt 0:00:07]} Kh5 {[%emt 0:01:27]} 39. Qg4# {[%emt 0:00:05]} 1-0

[Event "Turkish Cup 2024"]
[Site "Denizli"]
[Date "2024.07.31"]
[Round "2"]
[White "Baylav, Can"]
[Black "Karaca, Mert"]
[Result "1-0"]
[ECO "C77"]
[WhiteElo "2086"]
[BlackElo "1770"]
[Annotator "ChessBase"]
[PlyCount "113"]
[EventDate "2024.08.01"]
[EventType "swiss"]
[EventCountry "TUR"]
[SourceTitle "playchess.com"]
[Source "ChessBase"]
[SourceQuality "1"]
[TimeControl "5400+30"]

1. e4 {[%emt 0:05:00]} e5 {[%emt 0:01:00]} 2. Nf3 {[%emt 0:00:30]} Nc6 {[%emt 0:00:30]} 3. Bb5 {[%emt 0:00:30]} a6 {[%emt 0:00:30]} 4. Ba4 {[%emt 0:00:30]} Nf6 {[%emt 0:00:00]} 5. d3 {[%emt 0:00:00]} b5 {[%emt 0:00:00]} 6. Bb3 {[%emt 0:00:00]} Bc5 {[%emt 0:00:30]} 7. c3 {[%emt 0:01:30]} d6 {[%emt 0:00:30]} 8. h3 {[%emt 0:00:30]} h6 {[%emt 0:00:30]} 9. O-O {[%emt 0:00:30]} O-O {[%emt 0:01:30]} 10. Re1 {[%emt 0:00:30]} Re8 {[%emt 0:02:30]} 11. a4 {[%emt 0:00:30]} Rb8 {[%emt 0:02:30]} 12. d4 {[%emt 0:02:30]} exd4 {[%emt 0:06:30]} 13. cxd4 {[%emt 0:00:00]} Bb4 {[%emt 0:00:00]} 14. Re2 {[%emt 0:03:00]} Na5 {[%emt 0:15:00]} 15. Bc2 {[%emt 0:02:30]} Bb7 {[%emt 0:08:30]} 16. d5 {[%emt 0:00:30]} c6 {[%emt 0:01:30]} 17. dxc6 {[%emt 0:03:30]} Bxc6 {[%emt 0:01:30]} 18. Bd2 {[%emt 0:00:00]} bxa4 {[%emt 0:13:30]} 19. Bxa4 {[%emt 0:00:00]} Bxd2 {[%emt 0:07:30]} 20. Nbxd2 {[%emt 0:03:30]} Rxb2 {[%emt 0:03:30]} 21. Bxc6 {[%emt 0:02:30]} Nxc6 {[%emt 0:00:30]} 22. Qc1 {[%emt 0:00:30]} Rb6 {[%emt 0:00:30]} 23. Nc4 {[%emt 0:00:00]} Rb4 {[%emt 0:01:30]} 24. Rxa6 {[%emt 0:01:00]} Qb8 {[%emt 0:01:30]} 25. Nfd2 {[%emt 0:10:30]} Nd4 {[%emt 0:12:43]} 26. Re1 {[%emt 0:00:00]} d5 {[%emt 0:04:52]} 27. Nd6 {[%emt 0:03:00]} Re6 {[%emt 0:05:46]} 28. e5 {[%emt 0:00:00]} Ne4 {[%emt 0:00:23]} 29. N2xe4 {[%emt 0:02:00]} Ne2+ {[%emt 0:02:16]} 30. Rxe2 {[%emt 0:00:30]} Rb1 {[%emt 0:00:30]} 31. Ra1 {[%emt 0:00:00]} Rxc1+ {[%emt 0:00:32]} 32. Rxc1 {[%emt 0:00:00]} Kh7 {[%emt 0:00:30]} 33. Nc5 {[%emt 0:00:00]} Re7 {[%emt 0:00:30]} 34. Nd3 {[%emt 0:00:00]} f6 {[%emt 0:00:30]} 35. Nf5 {[%emt 0:00:30]} Re6 {[%emt 0:00:30]} 36. Nd4 {[%emt 0:00:30]} Re8 {[%emt 0:00:30]} 37. e6 {[%emt 0:00:30]} Qb6 {[%emt 0:00:30]} 38. Nc5 {[%emt 0:00:30]} Qb4 {[%emt 0:00:30]} 39. Ndb3 {[%emt 0:00:30]} d4 {[%emt 0:00:30]} 40. Rd1 {[%emt 0:00:30]} Qc4 {[%emt 0:06:17]} 41. Re4 {[%emt 0:02:30]} Qc2 {[%emt 0:01:27]} 42. Rdxd4 {[%emt 0:02:30]} Qb1+ {[%emt 0:00:42]} 43. Kh2 {[%emt 0:00:30]} f5 {[%emt 0:00:00]} 44. Re2 {[%emt 0:00:30]} Qf1 {[%emt 0:00:33]} 45. Rdd2 {[%emt 0:00:30]} f4 {[%emt 0:00:38]} 46. Nd4 {[%emt 0:00:30]} Qc1 {[%emt 0:00:28]} 47. Nd3 {[%emt 0:00:30]} Qc7 {[%emt 0:00:23]} 48. Nf3 {[%emt 0:00:30]} Qd6 {[%emt 0:00:45]} 49. Re4 {[%emt 0:01:30]} g5 {[%emt 0:00:40]} 50. Nb4 {[%emt 0:00:00]} Qb8 {[%emt 0:00:32]} 51. Rd7+ {[%emt 0:01:00]} Kg6 {[%emt 0:00:19]} 52. Ne5+ {[%emt 0:00:30]} Kh5 {[%emt 0:00:52]} 53. Ng4 {[%emt 0:01:30]} f3+ {[%emt 0:00:16]} 54. g3 {[%emt 0:00:30]} Qc8 {[%emt 0:00:23]} 55. Rg7 {[%emt 0:00:30]} Rxe6 {[%emt 0:00:17]} 56. Nf6+ {[%emt 0:00:30]} Rxf6 {[%emt 0:00:31]} 57. Rh4+ {[%emt 0:00:30]} 1-0

[Event "Turkish Cup 2024"]
[Site "Denizli"]
[Date "2024.07.31"]
[Round "2"]
[White "Yilmaz, Turhan"]
[Black "Torcuk, Hasan Cinar"]
[Result "1-0"]
[ECO "B23"]
[WhiteElo "2015"]
[BlackElo "1657"]
[Annotator "RC"]
[PlyCount "63"]
[EventDate "2024.08.01"]
[EventType "swiss"]
[EventCountry "TUR"]
[SourceTitle "playchess.com"]
[Source "ChessBase"]
[SourceQuality "1"]
[TimeControl "5400+30"]

1. e4 {[%emt 0:03:00]} c5 {[%emt 0:01:00]} 2. Nc3 {[%emt 0:02:30]} Nc6 {[%emt 0:00:30]} 3. d3 {[%emt 0:00:00]} d6 {[%emt 0:00:30]} 4. f4 {[%emt 0:00:00]} g6 {[%emt 0:00:00]} 5. Be3 {[%emt 0:00:00]} Bg7 {[%emt 0:00:00]} 6. Qd2 {[%emt 0:00:00]} e6 {[%emt 0:00:30]} 7. h3 {[%emt 0:00:30]} Rb8 {[%emt 0:01:30]} 8. Nd1 {[%emt 0:00:30]} Nge7 {[%emt 0:01:30]} 9. c3 {[%emt 0:00:30]} Qa5 {[%emt 0:19:30]} 10. g4 {[%emt 0:06:30]} b5 {[%emt 0:04:30]} 11. Ne2 {[%emt 0:04:30]} b4 {[%emt 0:05:30]} 12. Bg2 {[%emt 0:02:30]} bxc3 {[%emt 0:09:30]} 13. bxc3 {[%emt 0:00:30]} Ba6 {[%emt 0:00:00]} 14. Rc1 {[%emt 0:00:30]} Qb5 {[%emt 0:05:00]} 15. Nf2 {[%emt 0:09:30]} O-O {[%emt 0:10:30]} 16. O-O {[%emt 0:02:30]} f5 {[%emt 0:02:30]} 17. Rfd1 {[%emt 0:05:30]} Rfd8 {[%emt 0:00:30]} 18. c4 {[%emt 0:13:30]} Qb4 {[%emt 0:05:30]} 19. Rc2 {[%emt 0:18:30]} e5 {[%emt 0:11:30]} 20. fxe5 {[%emt 0:01:30]} Nxe5 {[%emt 0:00:38]} 21. gxf5 {[%emt 0:01:30]} gxf5 {[%emt 0:02:04]} 22. Qc1 {[%emt 0:01:30]} Rf8 {[%emt 0:04:03]} 23. Bg5 {[%emt 0:00:30]} N7g6 {[%emt 0:02:48]} 24. Nf4 {[%emt 0:06:39]} Nxf4 {[%emt 0:02:10]} 25. Bxf4 {[%emt 0:00:21]} Bb7 {[%emt 0:01:16]} 26. Bh6 {[%emt 0:02:24]} Rf6 {[%emt 0:01:15]} 27. Bxg7 {[%emt 0:02:21]} Kxg7 {[%emt 0:00:12]} 28. Rb2 {[%emt 0:00:30]} Qa5 {[%emt 0:00:59]} 29. Qg5+ {[%emt 0:00:51]} Kf7 {[%emt 0:00:11]} 30. Qh5+ {[%emt 0:01:17]} Kg8 {[%emt 0:02:43]} 31. Rdb1 {[%emt 0:01:13]} Rg6 {[%emt 0:01:50]} 32. Rxb7 {[%emt 0:01:29]} 1-0

[Event "Turkish Cup 2024"]
[Site "Denizli"]
[Date "2024.07.31"]
[Round "2"]
[White "Akbas, Kaan"]
[Black "Acar, Ilhami"]
[Result "1-0"]
[ECO "B70"]
[WhiteElo "1990"]
[BlackElo "1667"]
[Annotator "RC"]
[PlyCount "41"]
[EventDate "2024.08.01"]
[EventType "swiss"]
[EventCountry "TUR"]
[SourceTitle "playchess.com"]
[Source "ChessBase"]
[SourceQuality "1"]
[TimeControl "5400+30"]

1. e4 {[%emt 0:01:00]} c5 {[%emt 0:01:00]} 2. Nf3 {[%emt 0:00:00]} d6 {[%emt 0:00:30]} 3. d4 {[%emt 0:01:00]} cxd4 {[%emt 0:00:30]} 4. Nxd4 {[%emt 0:00:00]} Nf6 {[%emt 0:01:30]} 5. Nc3 {[%emt 0:00:00]} Nc6 {[%emt 0:01:30]} 6. Be2 {[%emt 0:00:30]} g6 {[%emt 0:00:30]} 7. Bg5 {[%emt 0:02:30]} Bg7 {[%emt 0:00:30]} 8. Nxc6 {[%emt 0:00:30]} bxc6 {[%emt 0:00:30]} 9. e5 {[%emt 0:00:30]} dxe5 {[%emt 0:00:30]} 10. Qxd8+ {[%emt 0:01:30]} Kxd8 {[%emt 0:00:30]} 11. O-O-O+ {[%emt 0:00:00]} Kc7 {[%emt 0:01:30]} 12. Bc4 {[%emt 0:01:00]} Ng4 {[%emt 0:08:30]} 13. Bxe7 {[%emt 0:20:30]} Nxf2 {[%emt 0:00:30]} 14. Bd6+ {[%emt 0:01:30]} Kb6 {[%emt 0:18:30]} 15. Na4+ {[%emt 0:00:30]} Ka5 {[%emt 0:03:30]} 16. b3 {[%emt 0:01:30]} Be6 {[%emt 0:09:30]} 17. Bc7+ {[%emt 0:00:30]} Kb4 {[%emt 0:00:30]} 18. a3+ {[%emt 0:00:30]} Kxa3 {[%emt 0:00:30]} 19. Bd6+ {[%emt 0:00:30]} Ka2 {[%emt 0:00:30]} 20. Nc3+ {[%emt 0:00:00]} Ka1 {[%emt 0:00:30]} 21. Kd2+ {[%emt 0:00:00]} 1-0

[Event "Turkish Cup 2024"]
[Site "Denizli"]
[Date "2024.07.31"]
[Round "2"]
[White "Ozgun, Yigit Deniz"]
[Black "Ugur, Cem"]
[Result "1-0"]
[ECO "D30"]
[WhiteElo "1973"]
[BlackElo "1687"]
[Annotator "RC"]
[PlyCount "123"]
[EventDate "2024.08.01"]
[EventType "swiss"]
[EventCountry "TUR"]
[SourceTitle "playchess.com"]
[Source "ChessBase"]
[SourceQuality "1"]
[TimeControl "5400+30"]

1. Nf3 {[%emt 0:06:00]} d5 {[%emt 0:03:00]} 2. b3 {[%emt 0:00:30]} Nf6 {[%emt 0:00:00]} 3. Bb2 {[%emt 0:00:00]} e6 {[%emt 0:01:00]} 4. c4 {[%emt 0:00:00]} c5 {[%emt 0:00:30]} 5. cxd5 {[%emt 0:00:30]} exd5 {[%emt 0:01:30]} 6. g3 {[%emt 0:00:30]} Be7 {[%emt 0:00:30]} 7. Bg2 {[%emt 0:01:30]} O-O {[%emt 0:01:30]} 8. d4 {[%emt 0:00:30]} Nc6 {[%emt 0:06:30]} 9. O-O {[%emt 0:00:00]} Ne4 {[%emt 0:05:30]} 10. dxc5 {[%emt 0:00:00]} Bxc5 {[%emt 0:00:30]} 11. Nc3 {[%emt 0:00:30]} Nxc3 {[%emt 0:03:30]} 12. Bxc3 {[%emt 0:00:00]} d4 {[%emt 0:00:00]} 13. Bb2 {[%emt 0:00:00]} Bf5 {[%emt 0:03:00]} 14. b4 {[%emt 0:05:30]} Qb6 {[%emt 0:07:30]} 15. a3 {[%emt 0:23:30]} a5 {[%emt 0:01:30]} 16. Nh4 {[%emt 0:00:30]} Be6 {[%emt 0:00:30]} 17. bxc5 {[%emt 0:01:30]} Qxb2 {[%emt 0:00:30]} 18. Qd3 {[%emt 0:00:30]} Qc3 {[%emt 0:14:30]} 19. Qxc3 {[%emt 0:07:30]} dxc3 {[%emt 0:01:30]} 20. Rac1 {[%emt 0:00:00]} Nd4 {[%emt 0:00:30]} 21. Rfe1 {[%emt 0:00:00]} Bc4 {[%emt 0:04:30]} 22. Bf1 {[%emt 0:00:30]} c2 {[%emt 0:12:30]} 23. e3 {[%emt 0:00:30]} Bxf1 {[%emt 0:00:00]} 24. Kxf1 {[%emt 0:00:30]} Nb3 {[%emt 0:01:00]} 25. Rxc2 {[%emt 0:00:30]} Rfc8 {[%emt 0:00:30]} 26. Rb1 {[%emt 0:07:30]} Rxc5 {[%emt 0:05:30]} 27. Rxc5 {[%emt 0:00:30]} Nxc5 {[%emt 0:00:00]} 28. Rb5 {[%emt 0:00:30]} b6 {[%emt 0:05:00]} 29. Rxb6 {[%emt 0:00:30]} a4 {[%emt 0:00:00]} 30. Nf5 {[%emt 0:00:30]} Nb3 {[%emt 0:01:00]} 31. Rb4 {[%emt 0:00:30]} Nc1 {[%emt 0:02:30]} 32. Ne7+ {[%emt 0:01:30]} Kf8 {[%emt 0:00:30]} 33. Nd5 {[%emt 0:00:00]} Rd8 {[%emt 0:01:21]} 34. e4 {[%emt 0:01:00]} f5 {[%emt 0:00:59]} 35. Rxa4 {[%emt 0:00:30]} fxe4 {[%emt 0:00:00]} 36. Ne3 {[%emt 0:01:30]} Rd3 {[%emt 0:00:30]} 37. Rc4 {[%emt 0:05:30]} Nb3 {[%emt 0:00:35]} 38. Rxe4 {[%emt 0:00:30]} Rc3 {[%emt 0:04:41]} 39. Rf4+ {[%emt 0:00:30]} Ke8 {[%emt 0:00:08]} 40. a4 {[%emt 0:00:00]} Rc1+ {[%emt 0:00:41]} 41. Kg2 {[%emt 0:00:00]} Ra1 {[%emt 0:00:28]} 42. Rc4 {[%emt 0:01:30]} Kd7 {[%emt 0:02:24]} 43. Rh4 {[%emt 0:01:30]} Ke7 {[%emt 0:03:02]} 44. Rxh7 {[%emt 0:00:30]} Kf6 {[%emt 0:00:15]} 45. Rh4 {[%emt 0:00:00]} Nc5 {[%emt 0:00:00]} 46. Nd5+ {[%emt 0:00:00]} Ke6 {[%emt 0:00:05]} 47. Nb6 {[%emt 0:01:30]} Ra2 {[%emt 0:00:17]} 48. Rd4 {[%emt 0:01:30]} Nb3 {[%emt 0:01:52]} 49. Re4+ {[%emt 0:00:30]} Kf5 {[%emt 0:00:00]} 50. Rf4+ {[%emt 0:00:30]} Ke6 {[%emt 0:00:01]} 51. h4 {[%emt 0:00:00]} Nc5 {[%emt 0:00:09]} 52. Rd4 {[%emt 0:00:00]} Nb3 {[%emt 0:00:30]} 53. Rg4 {[%emt 0:00:30]} Kf6 {[%emt 0:00:00]} 54. Nd5+ {[%emt 0:00:30]} Kf7 {[%emt 0:00:00]} 55. Nc3 {[%emt 0:00:30]} Ra3 {[%emt 0:00:12]} 56. Ne4 {[%emt 0:00:30]} Ra2 {[%emt 0:00:32]} 57. Rf4+ {[%emt 0:00:30]} Kg6 {[%emt 0:00:20]} 58. Nc3 {[%emt 0:00:30]} Ra3 {[%emt 0:00:30]} 59. Nd5 {[%emt 0:00:00]} Nc5 {[%emt 0:00:06]} 60. Ne7+ {[%emt 0:01:00]} Kh7 {[%emt 0:00:17]} 61. Rf5 {[%emt 0:00:30]} Rxa4 {[%emt 0:00:08]} 62. Rh5# {[%emt 0:00:00]} 1-0

[Event "Turkish Cup 2024"]
[Site "Denizli"]
[Date "2024.07.31"]
[Round "2"]
[White "Demirag, Gokhan"]
[Black "Uztetik, Ahmet Oguzhan"]
[Result "0-1"]
[ECO "E18"]
[WhiteElo "1938"]
[BlackElo "1629"]
[Annotator "ChessBase"]
[PlyCount "87"]
[EventDate "2024.08.01"]
[EventType "swiss"]
[EventCountry "TUR"]
[SourceTitle "playchess.com"]
[Source "ChessBase"]
[SourceQuality "1"]
[TimeControl "5400+30"]

1. Nf3 {[%emt 0:01:00]} d5 {[%emt 0:01:00]} 2. g3 {[%emt 0:01:30]} Nf6 {[%emt 0:00:30]} 3. Bg2 {[%emt 0:00:00]} e6 {[%emt 0:00:30]} 4. O-O {[%emt 0:00:00]} Be7 {[%emt 0:00:00]} 5. d4 {[%emt 0:00:30]} O-O {[%emt 0:00:00]} 6. c4 {[%emt 0:00:00]} b6 {[%emt 0:01:30]} 7. cxd5 {[%emt 0:00:00]} exd5 {[%emt 0:00:30]} 8. Nc3 {[%emt 0:00:30]} Bb7 {[%emt 0:01:30]} 9. Ne5 {[%emt 0:01:30]} Nbd7 {[%emt 0:04:30]} 10. Bf4 {[%emt 0:06:30]} c6 {[%emt 0:05:30]} 11. Rc1 {[%emt 0:06:30]} Nxe5 {[%emt 0:05:30]} 12. dxe5 {[%emt 0:00:30]} Nd7 {[%emt 0:00:30]} 13. h4 {[%emt 0:04:30]} Nc5 {[%emt 0:05:30]} 14. Qd2 {[%emt 0:07:30]} Ne6 {[%emt 0:03:30]} 15. Rfd1 {[%emt 0:01:30]} h6 {[%emt 0:10:30]} 16. Bh3 {[%emt 0:11:30]} Qe8 {[%emt 0:11:30]} 17. Bxh6 {[%emt 0:09:30]} gxh6 {[%emt 0:00:30]} 18. Qxh6 {[%emt 0:00:30]} Ng7 {[%emt 0:02:30]} 19. Rd4 {[%emt 0:02:30]} f5 {[%emt 0:03:30]} 20. g4 {[%emt 0:12:30]} Bc5 {[%emt 0:10:30]} 21. Rf4 {[%emt 0:11:30]} Qxe5 {[%emt 0:05:30]} 22. gxf5 {[%emt 0:01:30]} Bd6 {[%emt 0:01:30]} 23. e3 {[%emt 0:04:34]} Qf6 {[%emt 0:02:30]} 24. Qxf6 {[%emt 0:00:48]} Rxf6 {[%emt 0:00:30]} 25. Rg4 {[%emt 0:00:19]} Kf7 {[%emt 0:03:30]} 26. e4 {[%emt 0:02:37]} d4 {[%emt 0:00:00]} 27. Ne2 {[%emt 0:01:26]} c5 {[%emt 0:00:00]} 28. Bg2 {[%emt 0:00:12]} Re8 {[%emt 0:00:30]} 29. Kf1 {[%emt 0:02:55]} d3 {[%emt 0:03:34]} 30. Nc3 {[%emt 0:00:24]} d2 {[%emt 0:00:30]} 31. Rd1 {[%emt 0:00:23]} Nxf5 {[%emt 0:00:15]} 32. Kg1 {[%emt 0:04:36]} Nh6 {[%emt 0:00:03]} 33. Rg5 {[%emt 0:01:49]} Bf4 {[%emt 0:00:03]} 34. Rd5 {[%emt 0:00:21]} Bxd5 {[%emt 0:01:52]} 35. Nxd5 {[%emt 0:00:01]} Rf5 {[%emt 0:00:00]} 36. Bf3 {[%emt 0:01:25]} Rxd5 {[%emt 0:01:10]} 37. exd5 {[%emt 0:00:11]} Re1+ {[%emt 0:00:12]} 38. Kg2 {[%emt 0:00:06]} Nf5 {[%emt 0:01:26]} 39. Kh3 {[%emt 0:00:32]} Kf6 {[%emt 0:00:54]} 40. Bh5 {[%emt 0:01:59]} Ke5 {[%emt 0:00:59]} 41. Bg4 {[%emt 0:00:28]} Kxd5 {[%emt 0:00:37]} 42. h5 {[%emt 0:00:21]} Nd4 {[%emt 0:00:57]} 43. Kg2 {[%emt 0:00:15]} Ne2 {[%emt 0:00:22]} 44. Ra1 {[%emt 0:01:46]} 0-1

[Event "Turkish Cup 2024"]
[Site "Denizli"]
[Date "2024.07.31"]
[Round "2"]
[White "Sezis, Doruk"]
[Black "Sabuncuogullari, Emre"]
[Result "1-0"]
[ECO "E71"]
[WhiteElo "1932"]
[BlackElo "1691"]
[Annotator "ChessBase"]
[PlyCount "119"]
[EventDate "2024.08.01"]
[EventType "swiss"]
[EventCountry "TUR"]
[SourceTitle "playchess.com"]
[Source "ChessBase"]
[SourceQuality "1"]
[TimeControl "5400+30"]

1. d4 {[%emt 0:03:00]} Nf6 {[%emt 0:02:00]} 2. c4 {[%emt 0:00:30]} g6 {[%emt 0:00:30]} 3. Nc3 {[%emt 0:00:30]} Bg7 {[%emt 0:00:30]} 4. e4 {[%emt 0:00:30]} d6 {[%emt 0:00:00]} 5. h3 {[%emt 0:00:00]} O-O {[%emt 0:00:00]} 6. Be3 {[%emt 0:00:00]} e5 {[%emt 0:02:30]} 7. d5 {[%emt 0:00:30]} Na6 {[%emt 0:02:30]} 8. Nge2 {[%emt 0:00:00]} Nc5 {[%emt 0:00:30]} 9. Qc2 {[%emt 0:01:00]} a5 {[%emt 0:01:30]} 10. g4 {[%emt 0:00:00]} c6 {[%emt 0:11:30]} 11. Ng3 {[%emt 0:01:00]} Qc7 {[%emt 0:03:30]} 12. f3 {[%emt 0:01:30]} Bd7 {[%emt 0:02:30]} 13. h4 {[%emt 0:00:30]} cxd5 {[%emt 0:05:30]} 14. cxd5 {[%emt 0:00:30]} Rfc8 {[%emt 0:05:30]} 15. Qd2 {[%emt 0:03:30]} a4 {[%emt 0:07:30]} 16. Rc1 {[%emt 0:23:30]} Qa5 {[%emt 0:08:30]} 17. Be2 {[%emt 0:17:30]} b5 {[%emt 0:07:30]} 18. O-O {[%emt 0:05:30]} b4 {[%emt 0:02:30]} 19. Nd1 {[%emt 0:00:30]} Bb5 {[%emt 0:02:30]} 20. Nf2 {[%emt 0:03:30]} Bxe2 {[%emt 0:05:30]} 21. Nxe2 {[%emt 0:00:30]} Nfd7 {[%emt 0:02:30]} 22. Rc4 {[%emt 0:10:30]} b3 {[%emt 0:09:32]} 23. Qxa5 {[%emt 0:05:30]} Rxa5 {[%emt 0:00:30]} 24. a3 {[%emt 0:00:00]} f5 {[%emt 0:07:33]} 25. Rfc1 {[%emt 0:03:00]} f4 {[%emt 0:00:51]} 26. Bd2 {[%emt 0:00:00]} Raa8 {[%emt 0:00:14]} 27. Nc3 {[%emt 0:01:00]} Rcb8 {[%emt 0:01:18]} 28. Rb4 {[%emt 0:00:36]} Bf6 {[%emt 0:02:31]} 29. g5 {[%emt 0:02:24]} Bd8 {[%emt 0:00:02]} 30. Rxb8 {[%emt 0:02:51]} Rxb8 {[%emt 0:00:15]} 31. Kf1 {[%emt 0:00:23]} h6 {[%emt 0:04:38]} 32. Ke2 {[%emt 0:00:42]} h5 {[%emt 0:00:45]} 33. Nb1 {[%emt 0:00:28]} Kf7 {[%emt 0:03:05]} 34. Bb4 {[%emt 0:00:19]} Ke7 {[%emt 0:00:24]} 35. Nd2 {[%emt 0:01:50]} Na6 {[%emt 0:00:33]} 36. Bc3 {[%emt 0:00:36]} Ndc5 {[%emt 0:00:01]} 37. Nc4 {[%emt 0:00:21]} Rb5 {[%emt 0:00:08]} 38. Be1 {[%emt 0:00:54]} Kd7 {[%emt 0:00:51]} 39. Nd1 {[%emt 0:01:46]} Bc7 {[%emt 0:00:31]} 40. Nc3 {[%emt 0:00:13]} Rb8 {[%emt 0:00:06]} 41. Bf2 {[%emt 0:00:47]} Bd8 {[%emt 0:00:24]} 42. Nd1 {[%emt 0:02:14]} Rb5 {[%emt 0:00:16]} 43. Nd2 {[%emt 0:00:00]} Bc7 {[%emt 0:00:31]} 44. Rc4 {[%emt 0:00:00]} Bd8 {[%emt 0:01:53]} 45. Nc3 {[%emt 0:00:12]} Ra5 {[%emt 0:00:01]} 46. Rb4 {[%emt 0:00:00]} Nxb4 {[%emt 0:00:57]} 47. axb4 {[%emt 0:00:27]} a3 {[%emt 0:00:30]} 48. bxa3 {[%emt 0:00:30]} Rxa3 {[%emt 0:00:30]} 49. bxc5 {[%emt 0:00:30]} Ba5 {[%emt 0:00:30]} 50. c6+ {[%emt 0:00:30]} Kc8 {[%emt 0:00:00]} 51. Ncb1 {[%emt 0:09:11]} Ra2 {[%emt 0:00:00]} 52. Kd3 {[%emt 0:00:16]} Bxd2 {[%emt 0:01:30]} 53. Nxd2 {[%emt 0:00:06]} b2 {[%emt 0:00:06]} 54. Nb1 {[%emt 0:00:08]} Ra5 {[%emt 0:00:40]} 55. Kc2 {[%emt 0:00:16]} Rb5 {[%emt 0:00:36]} 56. Be1 {[%emt 0:00:08]} Rc5+ {[%emt 0:01:01]} 57. Kxb2 {[%emt 0:00:07]} Rb5+ {[%emt 0:00:14]} 58. Kc2 {[%emt 0:00:30]} Rc5+ {[%emt 0:00:00]} 59. Nc3 {[%emt 0:00:00]} Rc4 {[%emt 0:00:00]} 60. Bf2 {[%emt 0:00:23]} 1-0